bitfinex-derivatives/quotes_ETHF0:USTF0_20240927
["timestamp","ask_amount","ask_price","bid_price","bid_amount"]
[1727403508513,1.37,2625.4,2625.1,1.38111]
[1727403508719,1.37,2625.2,2624.9,0.19043]
[1727403508914,0.3888,2625.1,2624.9,0.19043]
[1727403509119,0.7629,2625.1,2624.9,0.19043]
[1727403509516,0.7629,2625.1,2624.9,3.39823]
[1727403510021,0.7629,2625.1,2625.0,0.19042]
[1727403513531,1.37,2625.2,2625.0,0.19042]
[1727403513726,1.37,2625.2,2624.9,1.37]
[1727403514625,1.37,2625.2,2625.0,0.19042]
[1727403515027,0.382,2625.5,2625.0,1.37]
[1727403515229,1.752,2625.5,2625.1,0.19041]
[1727403515425,1.752,2625.5,2625.2,0.3781]
[1727403515627,1.752,2625.5,2625.2,0.7847]
[1727403516527,1.752,2625.5,2625.2,0.97511]
[1727403516727,1.752,2625.5,2625.2,0.7847]
[1727403517932,0.382,2625.5,2625.3,0.1904]
[1727403518227,0.382,2625.5,2625.3,0.3768]
[1727403518622,1.752,2625.5,2625.3,0.3768]
[1727403521033,1.94239,2625.5,2625.2,0.7847]
[1727403521730,1.37,2625.3,2625.2,0.7847]
[1727403522230,1.37,2625.3,2624.9,0.19043]
[1727403522428,1.37,2625.3,2624.9,0.97843]
[1727403523532,1.37,2625.3,2625.0,0.19042]
[1727403525934,1.37,2625.3,2625.1,0.19041]
[1727403526133,1.37,2625.4,2625.1,0.19041]
[1727403526339,1.37,2625.4,2625.0,0.19042]
[1727403528729,1.5604,2625.4,2625.0,0.19042]
[1727403528928,1.37,2625.3,2625.0,0.19042]
[1727403533523,1.37,2625.3,2625.1,0.19042]
[1727403535029,1.752,2625.5,2625.2,0.19041]
[1727403535230,1.752,2625.5,2625.3,0.4108]
[1727403535633,1.94239,2625.5,2625.3,0.4108]
[1727403535829,0.19039,2625.4,2625.3,0.4108]
[1727403536236,3.99919,2625.4,2625.3,0.4108]
[1727403537238,3.8088,2625.4,2625.3,0.4108]
[1727403539026,3.99919,2625.4,2625.3,0.4108]
[1727403539232,3.99919,2625.4,2625.0,0.19042]
[1727403539433,1.37,2625.3,2625.1,0.3945]
[1727403540641,1.37,2625.3,2625.1,0.58491]
[1727403541344,1.37,2625.3,2625.1,0.3945]
[1727403542141,1.37,2625.3,2625.1,0.58491]
[1727403542336,1.37,2625.3,2625.1,1.57575373]
[1727403543143,1.37,2625.3,2625.1,1.38534373]
[1727403543441,1.37,2625.3,2625.2,0.99084373]
[1727403544340,1.752,2625.5,2625.2,2.54715604]
[1727403544542,1.752,2625.5,2625.3,0.99084373]
[1727403544740,1.752,2625.5,2625.4,0.99084373]
[1727403546837,1.94239,2625.5,2625.4,0.99084373]
[1727403547046,1.94239,2625.5,2625.3,1.37144373]
[1727403547238,0.19039,2625.4,2625.3,0.99084373]
[1727403547546,1.752,2625.5,2625.2,0.99084373]
[1727403547547,0.1904,2625.3,2625.2,0.99084373]
[1727403547843,1.5604,2625.3,2625.2,0.99084373]
[1727403550842,1.37,2625.3,2625.2,0.99084373]
[1727403554541,1.5604,2625.3,2625.2,0.99084373]
[1727403554741,11.1788,2625.3,2625.0,0.99084373]
[1727403554941,0.19042,2625.0,2624.9,0.99084373]
[1727403555448,0.19043,2624.9,2624.8,0.99084373]
[1727403555649,1.56043,2624.9,2624.8,0.99084373]
[1727403557444,1.56043,2624.9,2624.7,4.59334373]
[1727403558549,1.37,2624.9,2624.7,4.59334373]
[1727403558750,1.56043,2624.9,2624.7,4.59334373]
[1727403559445,0.19044,2624.8,2624.7,4.59334373]
[1727403559756,0.19044,2624.8,2624.7,3.6025]
[1727403560241,0.19045,2624.7,2624.6,0.3936]
[1727403560444,0.19045,2624.6,2624.4,0.3914]
[1727403560755,1.37,2624.5,2624.4,0.3914]
[1727403561647,4.5778,2624.5,2624.4,0.3914]
[1727403561951,4.5778,2624.5,2624.4,0.58187]
[1727403562256,4.5778,2624.5,2624.4,0.3914]
[1727403563555,3.2078,2624.5,2624.4,0.3914]
[1727403563749,3.2078,2624.5,2624.4,1.95187]
[1727403563950,1.37,2624.9,2624.6,0.19045]
[1727403564154,1.37,2624.9,2624.7,0.7685]
[1727403564551,0.57743,2625.0,2624.8,0.4088]
[1727403564753,1.37,2624.9,2624.8,0.4088]
[1727403565766,0.57743,2625.0,2624.8,0.4088]
[1727403565767,1.37,2625.0,2624.8,0.4088]
[1727403567153,1.37,2624.9,2624.8,0.4088]
[1727403568859,1.56043,2624.9,2624.8,0.4088]
[1727403569659,1.37,2624.9,2624.8,0.4088]
[1727403570254,1.56043,2624.9,2624.8,0.4088]
[1727403570652,8.57783,2624.9,2624.8,0.4088]
[1727403571466,0.19044,2624.8,2624.7,0.7685]
[1727403571667,0.19045,2624.6,2624.5,0.3973]
[1727403571863,1.56045,2624.6,2624.5,0.7934]
[1727403574459,1.37,2624.6,2624.5,0.7934]
[1727403574659,1.56045,2624.6,2624.5,0.7934]
[1727403577667,1.37,2624.6,2624.5,0.7934]
[1727403579057,1.37,2624.6,2624.4,0.3848]
[1727403579058,0.19046,2624.5,2624.4,0.3848]
[1727403579262,4.76826,2624.6,2624.3,0.3727]
[1727403579461,3.39826,2624.6,2624.4,0.4018]
[1727403580557,1.37,2624.5,2624.4,0.4018]
[1727403580763,1.56046,2624.5,2624.4,0.4018]
[1727403582164,1.37,2624.5,2624.4,0.4018]
[1727403583572,1.56046,2624.5,2624.4,0.4018]
[1727403585969,1.37,2624.5,2624.4,0.4018]
[1727403587873,1.56046,2624.5,2624.4,0.4018]
[1727403589569,1.37,2624.5,2624.4,0.4018]
[1727403590671,1.56046,2624.5,2624.4,0.4018]
[1727403591071,0.19046,2624.5,2624.4,0.4018]
[1727403591280,1.56046,2624.5,2624.4,0.4018]
[1727403597077,5.1804,2624.5,2624.1,3.6129]
[1727403597372,3.39828,2624.3,2624.2,0.4049]
[1727403598872,4.76828,2624.3,2624.2,0.4049]
[1727403599681,0.19048,2624.2,2623.9,0.4006]
[1727403599966,0.19048,2624.2,2624.0,0.3883]
[1727403600494,3.2078,2624.3,2624.0,0.3883]
[1727403600495,0.19049,2624.1,2624.0,0.3883]
[1727403601377,0.19049,2624.1,2623.9,0.4006]
[1727403601378,0.1905,2624.0,2623.9,0.4006]
[1727403601573,0.1905,2624.0,2623.9,0.7889]
[1727403601773,1.56049,2624.1,2623.9,0.7889]
[1727403602783,1.37,2624.1,2623.9,0.9794]
[1727403602981,1.37,2624.1,2623.9,0.7889]
[1727403604072,1.56049,2624.1,2623.9,0.7889]
[1727403604682,1.37,2624.2,2623.9,2.3494]
[1727403604877,1.37,2624.2,2623.9,0.9794]
[1727403605081,1.37,2624.2,2624.0,0.1905]
[1727403605285,1.37,2624.2,2623.9,1.97024373]
[1727403605483,1.37,2624.1,2623.9,1.97024373]
[1727403605880,1.37,2624.1,2623.9,0.9794]
[1727403606081,1.37,2624.1,2623.9,1.97024373]
[1727403606283,1.37,2624.1,2623.9,0.9794]
[1727403606685,1.37,2624.1,2623.9,1.77974373]
[1727403606882,1.37,2624.1,2623.9,0.7889]
[1727403607084,1.37,2624.1,2623.9,1.77974373]
[1727403607583,1.37,2624.1,2623.9,0.7889]
[1727403607789,1.37,2624.1,2623.9,0.9794]
[1727403608688,1.37,2624.1,2623.9,0.7889]
[1727403609290,1.37,2624.1,2623.9,0.9794]
[1727403609886,1.37,2624.1,2623.9,0.7889]
[1727403610985,1.37,2624.0,2623.9,0.7889]
[1727403611296,0.1905,2623.9,2623.8,3.2078]
[1727403611492,1.3946,2623.9,2623.8,3.2078]
[1727403611893,0.19052,2623.7,2623.5,1.1803]
[1727403612097,1.56053,2623.6,2623.5,0.3851]
[1727403612497,1.56053,2623.6,2623.2,0.8119]
[1727403612691,3.2078,2623.7,2623.3,0.3851]
[1727403612692,0.19053,2623.5,2623.3,0.3851]
[1727403612892,3.2078,2623.7,2623.3,0.3851]
[1727403612893,1.37,2623.4,2623.3,0.3851]
[1727403613596,0.19053,2623.6,2623.3,0.3851]
[1727403613794,1.37,2623.5,2623.3,0.3851]
[1727403614197,0.19052,2623.7,2623.3,0.3851]
[1727403614392,1.37,2623.5,2623.3,0.3851]
[1727403615495,1.2041,2623.9,2623.3,0.3851]
[1727403615694,1.37,2623.7,2623.5,0.19053]
[1727403615993,1.37,2623.7,2623.6,0.7827]
[1727403617694,1.37,2623.7,2623.6,0.97323]
[1727403618901,1.37,2623.7,2623.6,0.7827]
[1727403622000,1.56052,2623.7,2623.4,0.99766321]
[1727403622194,1.37,2623.5,2623.3,0.3851]
[1727403622596,1.7466,2623.5,2623.3,0.3851]
[1727403627896,0.19054,2623.4,2623.0,3.2078]
[1727403628101,1.37,2623.2,2623.0,3.2078]
[1727403628298,0.4044,2623.1,2623.0,3.2078]
[1727403628506,0.8125,2623.1,2623.0,3.2078]
[1727403630209,0.8125,2623.1,2622.9,0.3797]
[1727403630210,4.6245,2623.1,2622.9,0.3797]
[1727403630510,1.7712,2623.0,2622.9,0.3797]
[1727403632412,1.7712,2623.0,2622.7,3.2078]
[1727403632605,1.37,2622.8,2622.7,3.2078]
[1727403634715,1.37,2622.9,2622.8,0.19058]
[1727403635409,1.37,2622.9,2622.7,3.39839]
[1727403635611,1.37,2622.9,2622.8,0.19058]
[1727403637113,1.37,2622.9,2622.7,3.39839]
[1727403637708,1.37,2622.9,2622.8,0.19058]
[1727403637910,3.5985,2623.3,2623.0,0.19057]
[1727403638223,3.78905,2623.3,2623.1,0.373]
[1727403639116,1.56055,2623.2,2622.9,0.19057]
[1727403639318,1.37,2623.0,2622.8,0.58308]
[1727403641018,1.37,2623.0,2622.9,0.19058]
[1727403641719,1.37,2623.0,2622.8,0.58308]
[1727403642121,1.37,2623.0,2622.9,0.19058]
[1727403642318,1.37,2623.0,2622.8,0.58308]
[1727403644323,0.8004,2623.3,2622.8,0.3925]
[1727403644521,0.99095,2623.3,2622.9,0.19058]
[1727403644720,1.37,2623.1,2622.9,0.19058]
[1727403645418,1.37,2623.1,2623.0,0.3906]
[1727403648125,1.37,2623.1,2623.0,0.58117]
[1727403648916,1.37,2623.1,2623.0,0.3906]
[1727403649122,1.37,2623.1,2623.0,0.58117]
[1727403649426,0.19055,2623.3,2623.1,0.19056]
[1727403649427,1.37,2623.3,2623.1,0.19056]
[1727403649623,1.37,2623.3,2623.2,0.7598]
[1727403652632,1.56055,2623.3,2623.2,0.7598]
[1727403652832,1.37,2623.3,2623.2,0.7598]
[1727403658437,1.37,2623.3,2623.2,4.76235]
[1727403659739,1.37,2623.3,2623.2,4.5718]
[1727403659937,1.37,2623.3,2623.2,4.76235]
[1727403660639,1.37,2623.3,2623.2,4.5718]
[1727403661344,1.37,2623.3,2623.2,0.7598]
[1727403662431,1.94635,2623.3,2623.0,1.57882321]
[1727403662643,3.2078,2623.6,2623.2,0.19055]
[1727403662844,1.37,2623.4,2623.3,0.58595]
[1727403663342,1.37,2623.4,2623.3,0.3954]
[1727403665239,0.7727,2623.7,2623.3,9.77548815]
[1727403665447,0.3858,2623.7,2623.4,0.99766321]
[1727403665638,1.56053,2623.5,2623.3,1.39306321]
[1727403666247,1.37,2623.5,2623.3,1.39306321]
[1727403666741,1.56053,2623.5,2623.3,1.39306321]
[1727403667441,1.56053,2623.5,2623.3,4.60086321]
[1727403667638,1.56053,2623.5,2623.3,1.39306321]
[1727403667839,1.37,2623.5,2623.3,1.39306321]
[1727403669542,1.37,2623.5,2623.2,1.58971321]
[1727403669939,1.37,2623.5,2623.3,0.99766321]
[1727403670948,1.37,2623.5,2623.2,1.39916321]
[1727403671634,1.37,2623.5,2623.3,0.99766321]
[1727403672839,1.37,2623.5,2623.2,1.39916321]
[1727403672840,1.56054,2623.5,2623.2,1.39916321]
[1727403674042,1.56054,2623.5,2623.3,0.99766321]
[1727403674441,1.56054,2623.5,2623.2,1.39916321]
[1727403674642,1.37,2623.5,2623.2,1.39916321]
[1727403674843,1.37,2623.5,2623.2,1.58971321]
[1727403675055,1.56053,2623.5,2623.2,1.58971321]
[1727403675242,1.56053,2623.5,2623.3,0.3935]
[1727403675243,1.37,2623.5,2623.3,0.3935]
[1727403675743,1.56053,2623.5,2623.3,0.3935]
[1727403676853,1.37,2623.5,2623.3,0.3935]
[1727403677049,1.37,2623.5,2623.3,1.58170321]
[1727403677554,2.1496,2623.6,2623.3,1.58170321]
[1727403677756,2.1496,2623.6,2623.3,4.78950321]
[1727403677950,2.1496,2623.6,2623.4,0.3776]
[1727403678651,1.94753,2623.6,2623.4,0.3776]
[1727403678856,1.757,2623.6,2623.4,0.3776]
[1727403679154,1.37,2623.6,2623.4,0.3776]
[1727403679848,1.37,2623.6,2623.4,0.56814]
[1727403680250,1.37,2623.6,2623.4,0.3776]
[1727403680548,1.37,2623.6,2623.4,1.56580321]
[1727403680951,1.37,2623.6,2623.4,0.56814]
[1727403681151,1.37,2623.6,2623.4,0.3776]
[1727403681350,1.37,2623.6,2623.4,0.56814]
[1727403682149,1.56053,2623.6,2623.4,0.3776]
[1727403682854,1.37,2623.6,2623.4,0.56814]
[1727403683650,1.37,2623.6,2623.5,0.19053]
[1727403683851,3.2078,2623.7,2623.5,0.99766321]
[1727403684053,5.77347874,2624.0,2623.8,0.19051]
[1727403684355,7.14347874,2624.0,2623.9,0.398]
[1727403684945,7.33397874,2624.0,2623.9,0.398]
[1727403685152,0.1905,2623.9,2623.8,0.3789]
[1727403685753,7.33397874,2624.0,2623.8,0.3789]
[1727403687357,0.4078,2623.9,2623.6,0.99766321]
[1727403687558,0.4078,2623.9,2623.5,0.99766321]
[1727403687559,0.19052,2623.7,2623.5,0.99766321]
[1727403687754,1.37,2623.6,2623.5,0.99766321]
[1727403688064,1.37,2623.6,2623.4,1.39336321]
[1727403688254,2.37393,2623.6,2623.4,0.3957]
[1727403688767,0.19053,2623.5,2623.3,0.99766321]
[1727403688967,1.56054,2623.4,2623.2,5.52436321]
[1727403689261,1.37,2623.4,2623.2,1.39336321]
[1727403690260,1.7783,2623.4,2623.2,1.39336321]
[1727403692456,1.7783,2623.4,2623.3,0.99766321]
[1727403692660,0.19055,2623.3,2623.2,1.39336321]
[1727403692856,0.19055,2623.2,2623.1,0.99766321]
[1727403693157,0.19057,2623.0,2622.9,0.99766321]
[1727403693361,4.76837,2623.0,2622.7,0.99766321]
[1727403693553,1.7573,2622.9,2622.7,0.99766321]
[1727403693856,1.37,2622.9,2622.8,0.412]
[1727403694957,1.37,2622.9,2622.8,0.8015]
[1727403697453,1.37,2622.9,2622.8,0.412]
[1727403703268,1.37,2622.9,2622.8,0.8182]
[1727403703765,0.57786,2623.1,2622.8,0.8182]
[1727403703766,1.37,2623.0,2622.8,0.8182]
[1727403704569,1.56057,2623.0,2622.8,0.8182]
[1727403704864,1.37,2622.9,2622.8,0.8182]
[1727403706962,1.56058,2622.9,2622.8,0.412]
[1727403707165,0.19057,2623.0,2622.8,0.412]
[1727403707360,1.56057,2623.0,2622.8,0.412]
[1727403707965,1.37,2623.0,2622.8,0.412]
[1727403708164,1.56057,2623.0,2622.8,0.412]
[1727403709266,1.56057,2623.0,2622.8,0.817]
[1727403710259,1.37,2623.0,2622.8,0.817]
[1727403711572,1.56057,2623.0,2622.8,0.817]
[1727403711770,1.37,2623.0,2622.8,0.817]
[1727403712871,1.56057,2623.0,2622.8,0.817]
[1727403721081,0.19058,2622.9,2622.8,0.817]
[1727403721371,1.56058,2622.9,2622.8,0.817]
[1727403721678,1.37,2622.9,2622.8,0.817]
[1727403722375,1.56058,2622.9,2622.8,0.817]
[1727403722580,1.37,2622.9,2622.8,0.817]
[1727403722875,1.56058,2622.9,2622.8,0.817]
[1727403723072,1.56058,2622.9,2622.8,0.412]
[1727403723374,1.56058,2622.9,2622.6,0.8083]
[1727403723577,0.391,2622.8,2622.6,0.8083]
[1727403725575,0.391,2622.8,2622.7,0.19059]
[1727403725772,0.391,2622.8,2622.6,0.8083]
[1727403726081,0.391,2622.8,2622.6,0.99889]
[1727403727569,1.761,2622.8,2622.6,0.99889]
[1727403730672,1.95158,2622.8,2622.6,0.8083]
[1727403730878,1.37,2622.7,2622.6,0.8083]
[1727403732173,1.37,2622.7,2622.6,0.9989]
[1727403733281,0.089,2623.4,2622.6,6.98876321]
[1727403733482,1.37,2623.0,2622.8,0.99766321]
[1727403733678,1.56057,2623.0,2622.7,0.99766321]
[1727403734470,1.37,2623.0,2622.7,1.18825321]
[1727403734674,1.37,2623.0,2622.8,0.99766321]
[1727403735088,1.37,2623.0,2622.7,1.18825321]
[1727403735290,1.37,2623.0,2622.8,0.99766321]
[1727403735581,1.37,2622.9,2622.7,0.99766321]
[1727403735885,2.71898,2622.9,2622.7,0.99766321]
[1727403737892,2.5284,2622.9,2622.7,0.99766321]
[1727403738179,0.19058,2622.8,2622.7,0.99766321]
[1727403738385,0.19058,2622.8,2622.7,2.86365044]
[1727403739179,2.5284,2622.9,2622.7,2.86365044]
[1727403739374,2.5284,2622.9,2622.8,1.00052776]
[1727403739680,2.71898,2622.9,2622.8,1.00052776]
[1727403740082,2.5284,2622.9,2622.8,1.00052776]
[1727403740477,2.71898,2622.9,2622.8,1.00052776]
[1727403740678,2.1538,2622.9,2622.8,2.36813923]
[1727403740879,1.7588,2622.9,2622.8,1.36761147]
[1727403741081,0.98256,2623.2,2622.8,3.05468628]
[1727403741292,1.37,2623.1,2622.9,1.58789254]
[1727403741586,1.37,2623.1,2622.9,1.97299254]
[1727403741794,1.37,2623.1,2622.9,1.78241254]
[1727403742279,1.56056,2623.1,2622.9,1.78241254]
[1727403742674,1.37,2623.1,2622.9,1.78241254]
[1727403742890,1.56056,2623.1,2622.9,1.78241254]
[1727403743077,1.37,2623.1,2622.9,1.78241254]
[1727403743283,1.56056,2623.1,2622.9,1.78241254]
[1727403743485,1.37,2623.0,2622.9,1.78241254]
[1727403745188,1.37,2623.0,2622.9,3.14997558]
[1727403745390,1.37,2623.0,2622.9,3.14997365]
[1727403745595,1.37,2623.0,2622.9,1.78241254]
[1727403746193,0.4054,2623.2,2623.0,0.19057]
[1727403746390,0.089,2623.7,2623.1,4.6068663]
[1727403746595,1.37,2623.8,2623.5,1.00025352]
[1727403746889,1.7784,2623.9,2623.6,2.34807352]
[1727403747090,6.56865949,2624.3,2623.6,2.15755352]
[1727403747294,1.37,2624.0,2623.7,5.57450417]
[1727403747494,1.37,2624.0,2623.8,0.1905]
[1727403747687,1.37,2624.0,2623.7,1.00025352]
[1727403747688,1.37,2623.9,2623.7,1.00025352]
[1727403747889,1.37,2623.9,2623.6,3.84845381]
[1727403748087,1.56051,2623.9,2623.6,2.15755352]
[1727403748495,1.56051,2623.9,2623.6,1.1573]
[1727403748691,1.37,2623.9,2623.6,1.34782]
[1727403748897,1.37,2623.9,2623.6,2.34807352]
[1727403749592,1.37,2623.9,2623.6,1.34782]
[1727403749794,1.37,2623.9,2623.6,1.1573]
[1727403749990,1.5605,2623.9,2623.6,1.1573]
[1727403751698,3.2078,2624.0,2623.6,4.3651]
[1727403751699,1.37,2624.0,2623.6,4.3651]
[1727403752500,1.37,2624.0,2623.6,1.1573]
[1727403752692,0.59889,2624.2,2623.8,0.19051]
[1727403752995,1.37,2624.0,2623.7,0.19051]
[1727403753190,1.37,2624.0,2623.6,4.3651]
[1727403753389,1.37,2624.0,2623.7,0.19051]
[1727403753586,1.37,2624.0,2623.8,0.19051]
[1727403753785,0.4084,2624.2,2623.9,0.1905]
[1727403753986,3.2078,2624.3,2624.0,0.3889]
[1727403753987,4.76827,2624.3,2624.0,0.3889]
[1727403754292,4.76827,2624.3,2624.1,0.7842]
[1727403754597,3.2078,2624.3,2624.1,0.7842]
[1727403754801,4.5778,2624.3,2624.1,0.7842]
[1727403755802,4.76827,2624.3,2624.1,0.7842]
[1727403756302,0.19048,2624.2,2624.1,0.7842]
[1727403757394,4.76828,2624.3,2624.1,0.7842]
[1727403758501,0.19048,2624.2,2624.1,0.7842]
[1727403761906,4.5778,2624.3,2624.0,0.3889]
[1727403762203,1.37,2624.1,2624.0,0.3889]
[1727403762401,1.37,2624.1,2623.6,3.2078]
[1727403762402,0.47625,2624.0,2623.3,0.089]
[1727403762606,0.19054,2623.4,2623.3,0.3871]
[1727403762798,3.2078,2623.4,2623.3,0.3871]
[1727403762998,0.19054,2623.4,2623.3,0.3871]
[1727403763202,7.0198,2623.4,2622.8,1.56058]
[1727403763400,1.56055,2623.3,2623.0,0.4127]
[1727403763813,1.37,2623.3,2623.0,0.60327]
[1727403764398,0.19054,2623.4,2623.0,0.60327]
[1727403764701,3.2078,2623.4,2623.0,0.4127]
[1727403765004,0.19055,2623.3,2623.0,0.4127]
[1727403765505,0.19055,2623.3,2623.0,0.60327]
[1727403766010,0.19055,2623.3,2623.0,0.4127]
[1727403767007,3.39834,2623.4,2623.0,0.60327]
[1727403767402,0.19055,2623.2,2623.0,0.4127]
[1727403767607,2.97,2623.1,2622.5,4.20805352]
[1727403767809,0.19057,2623.0,2622.6,0.58049]
[1727403769507,7.3221,2623.1,2622.6,0.3899]
[1727403769807,3.16059,2622.7,2622.6,0.3899]
[1727403770106,2.97,2622.7,2622.6,0.3899]
[1727403770699,2.97,2622.7,2622.5,0.3946]
[1727403770700,3.16059,2622.7,2622.5,0.3946]
[1727403770908,2.97,2622.7,2622.5,0.3946]
[1727403771403,3.16059,2622.7,2622.5,0.3946]
[1727403771907,3.39839,2622.8,2622.5,0.3946]
[1727403776811,0.19059,2622.7,2622.5,0.3946]
[1727403777704,3.39838,2622.8,2622.5,0.3946]
[1727403780313,3.2078,2622.8,2622.5,0.3946]
[1727403780715,3.39839,2622.8,2622.5,0.3946]
[1727403781210,3.2078,2622.8,2622.5,0.3946]
[1727403781407,3.16057,2623.0,2622.5,0.3946]
[1727403781608,3.2078,2622.9,2622.6,0.1906]
[1727403782009,3.2078,2622.9,2622.7,0.3981]
[1727403782209,3.39838,2622.9,2622.7,0.3981]
[1727403782612,2.97,2622.8,2622.4,0.4077]
[1727403783311,3.1606,2622.6,2622.4,0.4077]
[1727403783509,2.97,2622.6,2622.4,0.4077]
[1727403783913,6.5745,2622.6,2622.4,0.4077]
[1727403786620,3.6045,2622.6,2622.4,0.59831]
[1727403786916,3.6045,2622.6,2622.4,0.4077]
[1727403787318,3.6045,2622.6,2622.4,0.59831]
[1727403787712,0.3967,2622.6,2622.4,0.59831]
[1727403788110,3.3794,2622.7,2622.4,0.59831]
[1727403788111,2.97,2622.7,2622.4,0.59831]
[1727403788723,2.97,2622.7,2622.5,0.1906]
[1727403788919,2.97,2622.7,2622.4,0.59831]
[1727403789112,2.97,2622.9,2622.6,0.1906]
[1727403789624,3.93807,2623.0,2622.7,0.4022]
[1727403789924,3.93807,2623.0,2622.7,0.59279]
[1727403790115,3.93807,2623.0,2622.7,0.4022]
[1727403791613,0.19058,2622.9,2622.7,0.4022]
[1727403792518,3.39838,2622.8,2622.7,0.4022]
[1727403792733,0.19059,2622.7,2622.4,0.4077]
[1727403793026,0.1906,2622.6,2622.4,0.3801]
[1727403793225,0.3977,2622.5,2622.4,0.3801]
[1727403793919,0.3977,2622.5,2622.3,0.19062]
[1727403794119,0.3977,2622.5,2622.3,0.57462]
[1727403796617,0.3977,2622.5,2622.4,0.19061]
[1727403796822,0.3977,2622.5,2622.3,0.57462]
[1727403798124,2.97,2622.7,2622.4,0.19061]
[1727403798326,2.97,2622.7,2622.5,0.3778]
[1727403798535,3.16059,2622.7,2622.5,0.3778]
[1727403799929,3.16059,2622.7,2622.3,0.57462]
[1727403799930,0.1906,2622.6,2622.3,0.384]
[1727403800128,2.97,2622.7,2622.3,0.384]
[1727403800129,0.19061,2622.5,2622.3,0.384]
[1727403800323,1.40571,2622.5,2622.3,0.384]
[1727403803622,2.97,2622.4,2622.1,0.56843]
[1727403803834,3.16061,2622.4,2622.2,0.3963]
[1727403804026,3.2078,2622.3,2621.8,0.19065]
[1727403804224,3.2078,2622.3,2621.8,0.3963]
[1727403804225,2.97,2622.2,2621.8,0.3963]
[1727403804424,1.37,2621.9,2621.8,0.58696]
[1727403804629,1.37,2621.9,2621.8,0.3963]
[1727403805142,1.37,2621.9,2621.8,0.19066]
[1727403805435,1.37,2621.9,2621.4,1.50038029]
[1727403805436,0.7,2621.4,2621.0,0.089]
[1727403805731,1.37,2621.2,2621.1,0.3963]
[1727403805927,1.37,2621.2,2621.1,17.2963]
[1727403806321,1.37,2621.2,2620.6,0.1931946]
[1727403806322,3.3743,2621.3,2620.5,6.2254832]
[1727403806525,3.3743,2621.3,2620.8,0.7709]
[1727403806526,3.2078,2621.1,2620.8,0.7709]
[1727403806925,3.2078,2621.1,2620.9,16.9]
[1727403807327,3.3743,2621.3,2620.9,16.9]
[1727403807752,3.2078,2621.1,2620.9,16.9]
[1727403808323,3.56499,2621.3,2620.9,16.9]
[1727403808525,3.2078,2621.1,2620.9,16.9]
[1727403809139,0.3943,2621.3,2620.9,16.9]
[1727403809635,3.2078,2621.1,2620.9,17.09072]
[1727403810340,0.3943,2621.3,2620.9,17.09072]
[1727403810734,3.2078,2621.1,2620.9,17.09072]
[1727403811041,3.2078,2621.1,2620.9,16.9]
[1727403811429,6.1878,2621.4,2620.9,16.9]
[1727403811631,3.2078,2621.1,2620.9,16.9]
[1727403812240,3.39851,2621.1,2620.9,16.9]
[1727403812444,3.2078,2621.1,2620.9,16.9]
[1727403815946,3.39851,2621.1,2620.9,16.9]
[1727403816446,3.2078,2621.1,2620.9,16.9]
[1727403816638,0.3881,2621.0,2620.9,16.9]
[1727403819445,3.2078,2621.1,2620.9,16.9]
[1727403819641,3.2078,2621.1,2620.9,17.09072]
[1727403822447,3.2078,2621.4,2620.9,16.9]
[1727403822652,3.2078,2621.4,2621.1,0.1907]
[1727403822860,3.2078,2621.4,2621.2,0.396]
[1727403823061,3.2078,2621.4,2621.2,1.1682]
[1727403823264,3.39849,2621.4,2621.3,16.9]
[1727403823863,6.37849,2621.4,2621.3,16.9]
[1727403827173,3.2078,2621.4,2621.3,16.9]
[1727403828066,3.39849,2621.4,2621.3,16.9]
[1727403828665,6.37849,2621.4,2621.3,16.9]
[1727403828972,6.37849,2621.4,2620.7,0.59813]
[1727403828973,0.19071,2621.1,2620.7,0.59813]
[1727403829163,3.2078,2620.9,2620.8,0.3902]
[1727403829365,3.2078,2620.9,2620.8,17.2902]
[1727403834379,3.2078,2620.9,2620.8,16.9]
[1727403834570,6.1878,2620.9,2620.5,0.2284332]
[1727403834772,6.37852,2620.9,2620.6,0.7751]
[1727403835076,6.1878,2620.9,2620.6,0.96584]
[1727403835373,6.1878,2620.9,2620.7,0.3953]
[1727403836173,6.37852,2620.9,2620.7,0.3953]
[1727403836376,6.1878,2620.9,2620.7,0.3953]
[1727403836962,3.2078,2620.9,2620.7,0.3953]
[1727403838966,3.39852,2620.9,2620.7,0.3953]
[1727403839370,6.37852,2620.9,2620.7,0.3953]
[1727403839570,6.78952,2620.9,2620.7,0.3953]
[1727403840871,6.78952,2620.9,2620.8,16.9]
[1727403841769,6.5988,2620.9,2620.8,16.9]
[1727403842667,6.78952,2620.9,2620.8,16.9]
[1727403843372,3.2078,2620.9,2620.8,17.09073]
[1727403843567,3.2078,2620.9,2620.8,16.9]
[1727403844074,3.2078,2620.9,2620.8,17.09073]
[1727403845378,3.2078,2620.9,2620.8,16.9]
[1727403845878,3.2078,2620.9,2620.8,17.09073]
[1727403847181,3.2078,2620.9,2620.8,16.9]
[1727403847677,3.2078,2620.9,2620.8,17.09073]
[1727403849182,3.2078,2620.9,2620.8,16.9]
[1727403850479,3.2078,2620.9,2620.8,18.43162353]